bitfinex/quotes_BTCUSD_20241223
["timestamp","ask_amount","ask_price","bid_price","bid_amount"]
[1734988735704,0.0011712,94085.0,94080.0,0.212585]
[1734988735932,0.0011712,94085.0,94079.0,0.023]
[1734988735933,0.0011712,94085.0,94081.0,0.023]
[1734988736141,0.0011712,94085.0,94079.0,0.024]
[1734988736720,0.0001712,94085.0,94079.0,0.024]
[1734988737058,0.0021712,94085.0,94073.0,0.2126]
[1734988737345,0.0001712,94085.0,94079.0,0.001]
[1734988737555,0.0021712,94085.0,94079.0,0.001]
[1734988737962,0.0001712,94085.0,94073.0,0.2126]
[1734988738114,0.0021712,94085.0,94073.0,0.4262]
[1734988738468,0.0021712,94085.0,94073.0,0.2136]
[1734988738666,0.0041712,94085.0,94073.0,0.2126]
[1734988738934,0.0041712,94085.0,94079.0,0.001]
[1734988739864,0.0001712,94085.0,94079.0,0.001]
[1734988740294,0.0021712,94085.0,94079.0,0.001]
[1734988740497,0.0021712,94085.0,94081.0,0.023]
[1734988740752,0.0001712,94085.0,94081.0,0.023]
[1734988741162,0.0021712,94085.0,94083.0,0.023]
[1734988741372,0.0001712,94085.0,94083.0,0.023]
[1734988741578,0.0001712,94085.0,94080.0,0.023]
[1734988741774,0.0021712,94085.0,94052.0,0.1828]
[1734988741924,0.0021712,94085.0,94081.0,0.001]
[1734988742595,0.0021712,94085.0,94083.0,0.023]
[1734988742800,0.0021712,94085.0,94084.0,0.235575]
[1734988743243,0.0001712,94085.0,94084.0,0.023]
[1734988743451,0.0001712,94085.0,94080.0,0.023]
[1734988743634,0.0021712,94085.0,94080.0,0.024]
[1734988743836,0.0021712,94085.0,94084.0,0.023]
[1734988744253,0.0021712,94085.0,94084.0,0.17608632]
[1734988744427,0.0001712,94085.0,94084.0,0.24624388]
[1734988744637,0.09364513,94115.0,94112.0,0.212511]
[1734988744806,0.09364513,94115.0,94113.0,0.023]
[1734988745272,0.09364513,94115.0,94114.0,0.33949432]
[1734988745635,0.09364513,94115.0,94108.0,0.212521]
[1734988745918,0.0941702,94115.0,94114.0,0.023]
[1734988746123,0.0941702,94115.0,94114.0,0.12698632]
[1734988746380,0.00052507,94115.0,94114.0,0.12698632]
[1734988747004,0.00052507,94115.0,94114.0,0.12804869]
[1734988747214,0.00152507,94115.0,94114.0,0.12804869]
[1734988747807,0.00052507,94115.0,94114.0,0.14788216]
[1734988748006,0.00052507,94115.0,94114.0,0.15488216]
[1734988748213,0.00052507,94115.0,94114.0,0.05089584]
[1734988748417,0.00052507,94115.0,94114.0,0.007]
[1734988749047,0.00052507,94115.0,94114.0,0.219508]
[1734988749251,0.00052507,94115.0,94114.0,0.007]
[1734988749527,0.00052507,94115.0,94114.0,0.004]
[1734988749760,0.00152507,94115.0,94114.0,0.008]
[1734988750014,0.00052507,94115.0,94114.0,0.025]
[1734988750245,0.00052507,94115.0,94114.0,0.027]
[1734988750440,0.00052507,94115.0,94111.0,0.212514]
[1734988750441,0.00052507,94115.0,94112.0,0.023]
[1734988750646,0.00052507,94115.0,94113.0,0.21251]
[1734988750836,0.00252507,94115.0,94114.0,0.001]
[1734988751185,0.00252507,94115.0,94114.0,0.212508]
[1734988751581,0.00052507,94115.0,94114.0,0.212508]
[1734988751783,0.00052507,94115.0,94114.0,0.31649432]
[1734988752009,0.00052507,94115.0,94114.0,0.31749432]
[1734988752693,0.00052507,94115.0,94114.0,0.34049432]
[1734988753124,0.00252507,94115.0,94114.0,0.34049432]
[1734988753321,0.00052507,94115.0,94114.0,0.33949432]
[1734988753659,0.00152507,94115.0,94114.0,0.34349432]
[1734988753967,0.00169627,94115.0,94114.0,0.34149432]
[1734988754164,0.00169627,94115.0,94114.0,0.33949432]
[1734988754365,0.00169627,94115.0,94114.0,0.002]
[1734988754795,0.00269627,94115.0,94114.0,0.002]
[1734988754925,0.00169627,94115.0,94114.0,0.10504883]
[1734988755124,0.00169627,94115.0,94114.0,0.10398632]
[1734988755327,0.001,94115.0,94114.0,0.35508655]
[1734988755526,0.001,94115.0,94114.0,0.40302422]
[1734988755729,0.001,94115.0,94114.0,0.32602422]
[1734988755930,0.001,94115.0,94114.0,0.36098632]
[1734988756463,0.0001714,94155.0,94114.0,0.36098632]
[1734988756464,0.0001714,94155.0,94120.0,0.212494]
[1734988756688,0.0001714,94155.0,94140.0,0.212447]
[1734988757269,0.0001714,94155.0,94136.0,0.212456]
[1734988757554,0.15,94148.0,94122.0,0.23549]
[1734988757787,0.15,94146.0,94124.0,0.023]
[1734988758103,0.15,94146.0,94123.0,0.212487]
[1734988758509,0.15,94144.0,94121.0,0.023]
[1734988758719,0.0809,94142.0,94114.0,0.02155245]
[1734988758932,0.15,94125.0,94114.0,0.00016035]
[1734988759490,0.212495,94120.0,94114.0,0.00016035]
[1734988759690,0.0362495,94119.0,94114.0,0.00016035]
[1734988760151,0.15,94123.0,94114.0,0.00016035]
[1734988760351,0.21249,94122.0,94114.0,0.00116035]
[1734988760548,0.15,94121.0,94114.0,0.00016035]
[1734988760710,0.008,94125.0,94114.0,0.00016035]
[1734988760910,0.006,94119.0,94116.0,0.023]
[1734988761110,0.006,94119.0,94115.0,0.1513488]
[1734988761111,0.006,94119.0,94118.0,0.023]
[1734988761346,0.006,94119.0,94118.0,0.12804858]
[1734988761517,0.006,94119.0,94118.0,0.12698632]
[1734988762743,0.002,94123.0,94119.0,0.424992]
[1734988762942,0.002,94123.0,94120.0,0.1280486]
[1734988763167,0.16324157,94153.0,94120.0,0.1280486]
[1734988763320,0.0452431,94152.0,94131.0,0.212469]
[1734988763517,0.0452431,94152.0,94120.0,0.1280486]
[1734988763518,0.0452431,94152.0,94132.0,0.10398632]
[1734988763719,0.0452431,94152.0,94136.0,0.212457]
[1734988763945,0.15,94159.0,94136.0,0.212457]
[1734988764150,0.1501714,94155.0,94132.0,0.10398632]
[1734988764369,0.212443,94143.0,94121.0,0.212491]
[1734988764544,0.212434,94147.0,94116.0,0.212503]
[1734988764750,0.006,94152.0,94135.0,0.212459]
[1734988764948,0.01561714,94151.0,94139.0,0.21245]
[1734988765243,0.006,94152.0,94143.0,0.212442]
[1734988765421,0.006,94152.0,94137.0,0.138456]
[1734988765648,0.006,94152.0,94137.0,0.10398632]
[1734988766026,0.0021714,94155.0,94137.0,0.10398632]
[1734988766246,0.0101714,94155.0,94137.0,0.10398632]
[1734988766390,0.03725744,94154.0,94137.0,0.10414667]
[1734988766590,0.0101714,94155.0,94139.0,0.212451]
[1734988766799,0.006,94152.0,94139.0,0.212451]
[1734988766983,0.006,94152.0,94138.0,0.212453]
[1734988767184,0.007,94152.0,94138.0,0.212453]
[1734988767602,0.0001714,94155.0,94138.0,0.212453]
[1734988767804,0.03625744,94154.0,94138.0,0.212453]
[1734988768010,0.001,94152.0,94142.0,0.212443]
[1734988768385,0.0081714,94155.0,94139.0,0.212451]
[1734988768914,0.0101714,94155.0,94138.0,0.10398632]
[1734988769117,0.0021714,94155.0,94139.0,0.212451]
[1734988769342,0.0021714,94155.0,94138.0,0.10398632]
[1734988769737,0.1521714,94155.0,94138.0,0.10398632]
[1734988769940,0.1521714,94155.0,94139.0,0.254986]
[1734988769941,0.006,94152.0,94139.0,0.254986]
[1734988770542,0.006,94152.0,94139.0,0.180986]
[1734988770752,0.006,94152.0,94146.0,0.212434]
[1734988771079,0.006,94152.0,94140.0,0.12804848]
[1734988771080,0.0021714,94155.0,94149.0,0.1274]
[1734988771270,0.0021714,94155.0,94154.0,0.023]
[1734988771520,0.0001712,94179.0,94154.0,0.12804814]
[1734988771643,0.0001712,94179.0,94166.0,0.212389]
[1734988771850,0.0001712,94179.0,94167.0,0.10398632]
[1734988772054,0.0001712,94179.0,94168.0,0.212386]
[1734988772256,0.0001712,94179.0,94168.0,0.10398632]
[1734988772550,0.0001712,94179.0,94168.0,0.31637232]
[1734988772757,0.0001712,94179.0,94168.0,0.31653267]
[1734988773058,0.0011712,94179.0,94168.0,0.31653267]
[1734988773499,0.0011712,94179.0,94170.0,0.212381]
[1734988773672,0.0001712,94179.0,94171.0,0.12804813]
[1734988773876,0.0001712,94179.0,94177.0,0.212365]
[1734988774072,0.0011712,94179.0,94178.0,0.105048]
[1734988774255,0.0011712,94179.0,94178.0,0.128048]
[1734988775142,0.0011712,94179.0,94178.0,0.14954237]
[1734988775819,0.0001712,94179.0,94178.0,0.19804237]
[1734988776030,0.0763,94225.0,94186.0,0.1]
[1734988776235,0.0763,94225.0,94187.0,0.13804774]
[1734988776475,0.0763,94225.0,94188.0,0.212341]
[1734988776690,0.0763,94225.0,94205.0,0.2123]
[1734988776893,0.0763,94225.0,94205.0,0.424602]
[1734988777095,0.0763,94225.0,94205.0,0.2123]
[1734988777300,0.0171714,94210.0,94205.0,0.2123]
[1734988777653,0.0091714,94210.0,94205.0,0.2123]
[1734988777856,0.00969712,94210.0,94197.0,0.447639]
[1734988778061,0.00969712,94210.0,94199.0,0.023]
[1734988778264,0.00969712,94210.0,94201.0,0.023]
[1734988778420,0.00969712,94210.0,94202.0,0.10398632]
[1734988778624,0.00969712,94210.0,94205.0,0.001]
[1734988778625,0.15,94207.0,94205.0,0.001]
[1734988778828,0.50348563,94206.0,94205.0,0.003]
[1734988779035,0.50348563,94206.0,94205.0,0.001]
[1734988779402,0.46628632,94206.0,94205.0,0.001]
[1734988779599,0.15,94206.0,94205.0,0.001]
[1734988779812,0.15,94197.0,94182.0,0.02090041]
[1734988780026,0.362304,94205.0,94183.0,0.10398632]
[1734988780257,0.212307,94203.0,94201.0,0.001]
[1734988780429,0.15,94202.0,94201.0,0.001]
[1734988780638,0.2285,94202.0,94201.0,0.001]
[1734988780837,0.33248632,94202.0,94201.0,0.001]
[1734988781066,0.33248632,94202.0,94182.0,0.02090041]
[1734988781067,0.15,94200.0,94182.0,0.02090041]
[1734988781459,0.001,94197.0,94183.0,0.10398632]
[1734988781803,0.001,94197.0,94182.0,0.02090041]
[1734988781804,0.15,94197.0,94182.0,0.02090041]
[1734988782014,0.15,94195.0,94182.0,0.02090041]
[1734988782244,0.15,94195.0,94183.0,0.001]
[1734988782583,0.21235,94184.0,94182.0,0.02090041]
[1734988782883,0.15,94185.0,94152.0,0.00106192]
[1734988783086,0.362348,94185.0,94163.0,0.212395]
[1734988783468,0.15,94180.0,94163.0,0.212395]
[1734988784070,0.212361,94179.0,94167.0,0.02087635]
[1734988784551,0.212371,94175.0,94167.0,0.02087635]
[1734988784707,0.212361,94179.0,94167.0,0.0210367]
[1734988785338,0.215361,94179.0,94167.0,0.0210367]
[1734988785536,0.220361,94179.0,94167.0,0.0210367]
[1734988786550,0.212373,94174.0,94167.0,0.0210367]
[1734988786760,0.005,94179.0,94167.0,0.0210367]
[1734988786962,0.437886,94168.0,94167.0,0.20016035]
[1734988787163,0.59037232,94168.0,94167.0,0.20016035]
[1734988788353,0.59937232,94168.0,94167.0,0.20016035]
[1734988788594,0.59037232,94168.0,94167.0,0.20016035]
[1734988788797,0.59637232,94168.0,94167.0,0.20116035]
[1734988789153,0.60537232,94168.0,94167.0,0.20116035]
[1734988789750,0.60537232,94168.0,94167.0,0.19716035]
[1734988789982,0.59937232,94168.0,94167.0,0.19616035]
[1734988790150,0.60337232,94168.0,94167.0,0.19616035]
[1734988790382,0.60337232,94168.0,94167.0,0.12216035]
[1734988790585,0.59937232,94168.0,94167.0,0.12216035]
[1734988791040,0.59437232,94168.0,94167.0,0.12216035]
[1734988791376,0.54587232,94168.0,94167.0,0.12216035]
[1734988791507,0.55087232,94168.0,94167.0,0.12216035]
[1734988791726,0.54187232,94168.0,94167.0,0.12216035]
[1734988791934,0.55587232,94168.0,94167.0,0.12216035]
[1734988792760,0.54687232,94168.0,94167.0,0.12216035]
[1734988792959,0.54704332,94168.0,94167.0,0.12216035]
[1734988793168,0.55104332,94168.0,94167.0,0.12216035]
[1734988793330,0.55504332,94168.0,94167.0,0.12216035]
[1734988793772,0.55104332,94168.0,94167.0,0.12216035]
[1734988794177,0.54504332,94168.0,94167.0,0.12216035]
[1734988794612,0.55104332,94168.0,94167.0,0.12116035]
[1734988795016,0.55504332,94168.0,94167.0,0.12116035]
[1734988795291,0.54604332,94168.0,94167.0,0.12116035]
[1734988795521,0.54604332,94168.0,94167.0,0.04716035]
[1734988795747,0.55504332,94168.0,94167.0,0.04716035]
[1734988795948,0.65504332,94168.0,94167.0,0.02592135]
[1734988796175,0.65504332,94168.0,94167.0,3.5e-07]
[1734988796353,0.75504332,94168.0,94167.0,3.5e-07]
[1734988796750,0.75104332,94168.0,94167.0,3.5e-07]
[1734988797109,0.75604332,94168.0,94167.0,3.5e-07]
[1734988797487,0.75104332,94168.0,94167.0,3.5e-07]
[1734988797896,0.74904332,94168.0,94167.0,3.5e-07]
[1734988798302,0.75804332,94168.0,94167.0,3.5e-07]
[1734988798479,0.74904332,94168.0,94167.0,3.5e-07]
[1734988798834,0.75804332,94168.0,94167.0,3.5e-07]
[1734988799171,0.74904332,94168.0,94167.0,3.5e-07]
[1734988799521,0.75104332,94168.0,94167.0,3.5e-07]
[1734988799703,0.1,94161.0,94120.0,0.01988867]
[1734988799865,0.15,94134.0,94120.0,0.02004883]
[1734988800417,0.212487,94124.0,94120.0,0.02004883]
[1734988800629,0.212487,94124.0,94120.0,0.00016016]
[1734988800768,0.15,94134.0,94120.0,0.00016016]
[1734988801701,0.007,94124.0,94120.0,0.00016016]
[1734988801902,0.212475,94129.0,94120.0,0.00016016]
[1734988802480,0.15,94130.0,94123.0,0.02157823]
[1734988803295,0.212474,94129.0,94120.0,0.00016016]
[1734988803677,0.212484,94125.0,94120.0,0.00016016]
[1734988803883,0.212487,94123.0,94120.0,0.00016016]
[1734988804104,0.424975,94123.0,94120.0,0.00016016]
[1734988804353,0.212487,94123.0,94120.0,0.00016016]
[1734988804723,0.212487,94123.0,94120.0,0.00024566]
[1734988804928,0.004,94125.0,94120.0,0.00024566]
[1734988805263,0.004,94125.0,94124.0,0.212485]
[1734988805485,0.001,94129.0,94125.0,0.212481]
[1734988805805,0.212425,94151.0,94126.0,0.10504858]
[1734988806010,0.2549088,94151.0,94128.0,0.212476]
[1734988806436,0.212413,94157.0,94135.0,0.21246]
[1734988806724,0.212413,94157.0,94130.0,0.023]
[1734988807037,0.001,94151.0,94132.0,0.212467]
[1734988807250,0.001,94151.0,94150.0,0.0214772]
[1734988807602,0.21245,94140.0,94123.0,0.1301]
[1734988808015,0.212437,94146.0,94139.0,0.02181385]
[1734988808217,0.10398632,94145.0,94139.0,0.02181385]
[1734988808459,0.15,94141.0,94139.0,0.02197401]
[1734988808572,0.212449,94140.0,94139.0,0.02197401]
[1734988808773,0.365449,94140.0,94139.0,0.02197401]
[1734988808981,0.153,94140.0,94139.0,0.02197401]
[1734988809438,0.19994253,94140.0,94139.0,0.02197401]
[1734988809659,0.41239153,94140.0,94139.0,0.02197401]
[1734988810331,0.04694253,94140.0,94139.0,0.02197401]
[1734988810534,0.19694253,94140.0,94139.0,0.02197401]
[1734988810736,0.15,94140.0,94139.0,0.02197401]
[1734988811138,0.152,94140.0,94139.0,0.02197401]
[1734988811595,0.152,94140.0,94139.0,0.02297401]
[1734988811800,0.152,94140.0,94139.0,0.00116016]
[1734988811984,0.25398632,94140.0,94139.0,0.00116016]
[1734988812123,0.25598632,94140.0,94139.0,0.00116016]
[1734988812545,0.002,94140.0,94139.0,0.00116016]
[1734988813507,0.15,94148.0,94139.0,0.00116016]
[1734988813715,0.15,94148.0,94139.0,0.00016016]
[1734988813923,0.15,94148.0,94139.0,0.00116016]
[1734988814055,0.15,94146.0,94139.0,0.00116016]
[1734988814298,0.15,94148.0,94139.0,0.00016016]
[1734988814552,0.002,94140.0,94139.0,0.00016016]
[1734988814754,0.151,94148.0,94139.0,0.00016016]
[1734988814962,0.001,94148.0,94139.0,0.00016016]
[1734988815118,0.007,94148.0,94139.0,0.00122229]
[1734988815320,0.007,94148.0,94139.0,0.00016016]
[1734988815520,0.006,94148.0,94139.0,0.00016016]
[1734988815720,0.006,94148.0,94140.0,0.212449]
[1734988816065,0.006,94148.0,94139.0,0.20016016]
[1734988816626,0.006,94148.0,94139.0,0.41261116]
[1734988816835,0.006,94148.0,94140.0,0.212449]
[1734988817219,0.15,94161.0,94140.0,0.212449]
[1734988817414,0.212393,94166.0,94145.0,0.212437]
[1734988817415,0.000171,94154.0,94145.0,0.212437]
[1734988817626,0.000171,94154.0,94150.0,0.212425]
[1734988817985,0.000171,94154.0,94153.0,0.023]
[1734988818177,0.212342,94188.0,94163.0,0.212396]
[1734988819026,0.212346,94186.0,94154.0,0.212416]
[1734988819219,0.15,94180.0,94167.0,0.02093091]
[1734988819634,0.212357,94181.0,94167.0,0.02093091]
[1734988819837,0.15,94180.0,94167.0,0.02093091]
[1734988820387,0.15,94175.0,94167.0,0.02093091]
[1734988820622,0.15,94175.0,94146.0,0.212435]
[1734988820623,0.0151881,94168.0,94146.0,0.212435]
[1734988820827,0.15,94166.0,94146.0,0.212435]
[1734988821043,0.15,94166.0,94151.0,0.212424]
[1734988821258,0.15,94166.0,94153.0,0.21242]
[1734988821459,0.15,94166.0,94151.0,0.212424]
[1734988821685,0.15,94166.0,94148.0,0.212431]
[1734988821902,0.212393,94165.0,94163.0,0.02098058]
[1734988823259,0.212393,94165.0,94140.0,0.078]
[1734988823260,0.212412,94157.0,94140.0,0.078]
[1734988823462,0.212433,94147.0,94139.0,0.24816016]
[1734988823833,0.15,94156.0,94139.0,0.24816016]
[1734988824000,0.0362412,94155.0,94139.0,0.24816016]
[1734988824351,0.212415,94155.0,94139.0,0.24816016]
[1734988824720,0.15,94156.0,94146.0,0.02096567]
[1734988824924,0.001,94147.0,94146.0,0.02096567]
[1734988825088,0.424778,94167.0,94146.0,0.02096567]
[1734988825301,0.15,94166.0,94146.0,0.02096567]
[1734988825579,0.004,94155.0,94146.0,0.02096567]
[1734988826373,0.212417,94154.0,94146.0,0.02096567]
[1734988826522,0.212417,94154.0,94139.0,0.24816016]
[1734988826523,0.212449,94140.0,94139.0,0.20016016]
[1734988826726,0.3836939,94140.0,94139.0,0.20016016]
[1734988826948,0.48768022,94140.0,94139.0,0.20016016]
[1734988828163,0.49468022,94140.0,94139.0,0.20016016]
[1734988828362,0.48868022,94140.0,94139.0,0.20016016]
[1734988828796,0.49768022,94140.0,94139.0,0.20016016]
[1734988829175,0.49668022,94140.0,94139.0,0.20016016]
[1734988829398,0.49668022,94140.0,94139.0,0.20024566]
[1734988829603,0.49868022,94140.0,94139.0,0.20024566]
[1734988829833,0.58968022,94140.0,94139.0,0.15924565]
[1734988829975,0.58768022,94140.0,94139.0,0.15924565]
[1734988830175,0.69032535,94140.0,94139.0,0.15924565]
[1734988830373,0.79532535,94140.0,94139.0,0.04275565]
[1734988830592,0.79532535,94140.0,94139.0,0.02151065]
[1734988830787,0.79932535,94140.0,94139.0,6.5e-07]
[1734988831190,0.58308045,94140.0,94139.0,6.5e-07]
[1734988831651,0.48943532,94140.0,94139.0,6.5e-07]
[1734988832022,0.34457874,94140.0,94139.0,6.5e-07]
[1734988832824,0.44457874,94140.0,94139.0,6.5e-07]
[1734988833235,0.64457874,94140.0,94139.0,6.5e-07]
[1734988833465,0.362492,94121.0,94120.0,8.55e-05]
[1734988833812,0.54347832,94121.0,94120.0,0.00024294]
[1734988834079,0.54939648,94121.0,94120.0,0.00024294]
[1734988834485,0.64939648,94121.0,94120.0,0.00024294]
[1734988834681,0.1,94118.0,94090.0,0.0201916]
[1734988834981,0.21256,94091.0,94090.0,0.00052507]
[1734988835184,0.36256,94091.0,94090.0,0.00052507]
[1734988835413,0.36844466,94091.0,94090.0,0.00052507]
[1734988835763,0.47243098,94091.0,94090.0,0.00052507]
[1734988837610,0.47343098,94091.0,94090.0,0.00052507]
[1734988838006,0.48043098,94091.0,94090.0,0.00052507]
[1734988838437,0.57943098,94091.0,94090.0,0.00052507]
[1734988838598,0.67943098,94091.0,94090.0,0.00052507]
[1734988839602,0.1,94090.0,94057.0,0.02148031]
[1734988839813,0.15,94059.0,94032.0,0.0491]
[1734988840009,0.15,94053.0,94049.0,0.02084175]
[1734988840234,0.00564684,94052.0,94049.0,0.02084175]
[1734988840454,0.21265,94051.0,94049.0,0.02084175]
[1734988840649,0.00564684,94052.0,94049.0,0.02084175]
[1734988840868,0.00566425,94050.0,94049.0,0.02084175]
[1734988841041,0.212595,94076.0,94049.0,0.02084175]
[1734988841042,0.15,94073.0,94049.0,0.02084175]
[1734988841246,0.15,94071.0,94049.0,0.02084175]
[1734988841676,0.15,94071.0,94051.0,0.0796]
[1734988841847,0.212662,94046.0,94044.0,8.55e-05]
[1734988842055,0.15,94068.0,94044.0,8.55e-05]
[1734988842307,0.212648,94053.0,94044.0,8.55e-05]
[1734988842476,0.212648,94053.0,94045.0,0.02128067]
[1734988843017,0.21265,94051.0,94045.0,0.02128067]
[1734988843236,0.21265,94051.0,94045.0,0.02143815]
[1734988843426,0.005,94052.0,94045.0,0.02143815]
[1734988843645,0.00838521,94050.0,94045.0,0.02143815]
[1734988843855,0.15,94054.0,94045.0,0.02143815]
[1734988844003,0.00838521,94049.0,94046.0,0.023]
[1734988844227,0.006,94053.0,94046.0,0.023]
[1734988844400,0.00838521,94048.0,94046.0,0.023]
[1734988844630,0.0368639,94053.0,94046.0,0.023]
[1734988844864,0.00838521,94047.0,94046.0,0.023]
[1734988845061,0.15,94055.0,94046.0,0.023]
[1734988845263,0.00828717,94047.0,94046.0,0.023]
[1734988845617,0.212643,94054.0,94045.0,0.02143815]
[1734988845792,0.00837506,94047.0,94045.0,0.02143815]
[1734988845934,0.15,94053.0,94045.0,0.02143815]
[1734988846145,0.00828544,94046.0,94045.0,0.04443815]
[1734988846396,0.15,94053.0,94045.0,0.04443815]
[1734988846792,0.00829581,94052.0,94045.0,0.04443815]
[1734988847201,0.00829408,94051.0,94045.0,0.04443815]
[1734988847404,0.212652,94050.0,94045.0,0.02315748]
[1734988847611,0.00829063,94049.0,94045.0,0.02315748]
[1734988847855,0.15,94047.0,94045.0,0.00015748]
[1734988848230,0.00828544,94046.0,94045.0,0.00015748]
[1734988849201,0.004,94049.0,94045.0,0.00015748]
[1734988849404,0.004,94049.0,94047.0,0.023]
[1734988849405,0.0082889,94048.0,94047.0,0.023]
[1734988849650,0.004,94049.0,94048.0,0.258057]
[1734988849828,0.004,94049.0,94048.0,0.38504332]
[1734988850104,0.004,94049.0,94048.0,0.46824332]
[1734988850462,0.212594,94076.0,94053.0,0.212643]
[1734988850634,0.0425177,94075.0,94054.0,0.023]
[1734988850847,0.00692829,94075.0,94056.0,0.023]
[1734988851050,0.00692829,94075.0,94065.0,0.212617]
[1734988851259,0.10398632,94074.0,94056.0,0.023]
[1734988851465,0.10398632,94074.0,94048.0,0.1286]
[1734988851466,0.10398632,94074.0,94051.0,0.023]
[1734988851651,0.25120171,94073.0,94051.0,0.023]
[1734988851850,0.03860171,94073.0,94053.0,0.235646]
[1734988852108,0.03860171,94073.0,94055.0,0.023]
[1734988852109,0.00694458,94073.0,94055.0,0.023]
[1734988852316,0.004,94075.0,94067.0,0.023]
[1734988852764,0.00693825,94074.0,94067.0,0.023]
[1734988853207,0.004,94075.0,94067.0,0.023]
[1734988853456,0.0011712,94075.0,94067.0,0.023]
[1734988853803,0.0011712,94075.0,94074.0,0.023]
[1734988854020,0.0011712,94075.0,94074.0,0.1]
[1734988854185,0.0011712,94075.0,94074.0,0.46314726]
[1734988854393,0.0011712,94075.0,94074.0,0.358098]
[1734988854554,0.0031712,94075.0,94074.0,0.358098]
[1734988854756,0.0001712,94075.0,94074.0,0.358098]
[1734988855018,0.00069624,94075.0,94074.0,0.358098]
[1734988856705,0.00269624,94075.0,94074.0,0.358098]
[1734988857851,0.00269624,94075.0,94074.0,0.37916804]
[1734988858058,0.00269624,94075.0,94074.0,0.51050343]
[1734988858254,0.00269624,94075.0,94074.0,0.48315436]
[1734988858788,0.212483,94125.0,94099.0,0.023]
[1734988859043,0.212496,94120.0,94095.0,0.023]
[1734988859232,0.0071648,94124.0,94109.0,0.212518]
[1734988859453,0.00717955,94119.0,94116.0,0.212503]
[1734988859681,0.212435,94147.0,94123.0,0.212485]
[1734988859851,0.212435,94147.0,94124.0,0.023]
[1734988860031,0.212431,94149.0,94125.0,0.10398632]
[1734988860241,0.0001712,94152.0,94137.0,0.023]
[1734988860448,0.0001712,94152.0,94138.0,0.31644032]
[1734988860729,0.0001712,94152.0,94146.0,0.212434]
[1734988860950,0.002,94140.0,94136.0,0.1]
[1734988861121,0.002,94140.0,94138.0,0.212452]
[1734988861322,0.0001712,94152.0,94141.0,0.212447]
[1734988861539,0.0001712,94152.0,94150.0,0.212424]
[1734988861960,0.0001712,94152.0,94142.0,0.31643132]
[1734988862089,0.0001712,94152.0,94138.0,0.002]
[1734988862293,0.212428,94150.0,94138.0,0.002]
[1734988862527,0.23370602,94149.0,94138.0,0.002]
[1734988862774,0.21997884,94149.0,94147.0,0.02119507]
[1734988862918,0.424866,94147.0,94126.0,0.0756]
[1734988863141,0.00106223,94146.0,94138.0,0.004]
[1734988863344,0.00754894,94146.0,94142.0,0.02148495]
[1734988863500,0.0091712,94152.0,94143.0,0.44894512]
[1734988863703,0.0001712,94152.0,94143.0,0.447883]
[1734988864017,0.01,94149.0,94148.0,0.212431]
[1734988864224,0.01,94149.0,94144.0,0.023]
[1734988864409,0.008,94149.0,94144.0,0.023]
[1734988864610,0.003,94146.0,94145.0,0.212438]
[1734988864811,0.003,94146.0,94145.0,0.235438]
[1734988865061,0.003,94146.0,94145.0,0.38646072]
[1734988865304,0.0001712,94170.0,94155.0,0.023]
[1734988865446,0.0001712,94170.0,94156.0,0.0010619]
[1734988865652,0.0001712,94170.0,94158.0,0.023]
[1734988865850,0.0001712,94170.0,94160.0,0.023]
[1734988866273,0.0001712,94170.0,94138.0,0.22290283]
[1734988866274,0.0001712,94170.0,94154.0,0.023]
[1734988866478,0.00123323,94168.0,94146.0,0.02315748]
[1734988866673,0.00758793,94167.0,94156.0,0.002]
[1734988866875,0.00758793,94167.0,94148.0,0.23543]
[1734988867083,0.00758793,94167.0,94150.0,0.023]
[1734988867325,0.000171,94168.0,94163.0,0.02087304]
[1734988868225,0.001,94167.0,94163.0,0.02087304]
[1734988868446,0.001,94167.0,94165.0,0.023]
[1734988868668,0.001,94167.0,94158.0,0.212408]
[1734988868669,0.001,94167.0,94166.0,0.023]
[1734988868867,0.007,94167.0,94166.0,0.023]
[1734988869101,0.001,94167.0,94166.0,0.23539]
[1734988869284,0.001,94167.0,94166.0,0.023]
[1734988869434,0.001,94167.0,94166.0,0.21239]
[1734988869648,0.001,94167.0,94166.0,0.19238999]
[1734988869890,0.000171,94168.0,94167.0,0.023]
[1734988870065,0.000171,94168.0,94167.0,0.12698632]
[1734988870279,0.000171,94168.0,94167.0,0.25438632]
[1734988870484,0.000171,94168.0,94167.0,0.20338632]
[1734988870793,0.000171,94168.0,94167.0,0.23244798]
[1734988870981,0.000171,94168.0,94167.0,0.1274]
[1734988871575,0.000171,94168.0,94167.0,0.0499]
[1734988872060,0.000171,94168.0,94166.0,0.02112437]
[1734988872498,0.000171,94168.0,94157.0,0.212408]
[1734988872734,0.001171,94168.0,94157.0,0.212408]
[1734988872941,0.000171,94168.0,94157.0,0.212408]
[1734988873152,0.000171,94168.0,94167.0,0.003]
[1734988873595,0.000171,94168.0,94164.0,0.212395]
[1734988873818,0.001171,94168.0,94165.0,0.00106184]
[1734988874041,0.000171,94168.0,94166.0,0.21339]
[1734988874247,0.000171,94168.0,94166.0,0.001]
[1734988874451,0.000171,94168.0,94167.0,0.001]
[1734988874655,0.02144342,94168.0,94167.0,0.001]
[1734988874892,0.000171,94168.0,94167.0,0.001]
[1734988875509,0.000171,94168.0,94163.0,0.127]
[1734988875924,0.000171,94168.0,94164.0,0.001]
[1734988876209,0.000171,94168.0,94163.0,0.127]
[1734988876650,0.21239,94166.0,94163.0,0.127]
[1734988876859,0.000171,94168.0,94163.0,0.127]
[1734988877265,0.00761304,94165.0,94163.0,0.127]
[1734988877564,0.002171,94168.0,94164.0,0.03379022]
[1734988877768,0.002171,94168.0,94166.0,0.21239]
[1734988877988,0.002171,94168.0,94167.0,0.10504812]
[1734988879250,0.002171,94168.0,94167.0,0.27811018]
[1734988879459,0.00106223,94209.0,94191.0,0.212332]
[1734988879664,0.0001714,94210.0,94177.0,0.1]
[1734988879876,0.0001714,94210.0,94192.0,0.10398632]
[1734988880077,0.0001714,94210.0,94174.0,0.5405]